Cogmind - Beta 17 @@@ ROGUE MODE // 2026.08.01 @ 22:20:34 Player: Scuttle Result: Destroyed by 8H-OJ0(R) with Subdweller Laser Performance ------------- Evolutions (0) 0 Regions Visited (2) 400 Robots Destroyed (22) 110 Value Destroyed (684) 684 Prototype IDs (1) 20 Alien Tech Used (0) 0 Bonus (0) 0 TOTAL SCORE: 1214 Bonus ------- None Cogmind --------- Core Integrity 0/250 Matter 254/300 Energy 3/100 System Corruption 0% Temperature Cool (6) Movement Rolling (110) Location -10/Subcaves Parts ------- > --- POWER (1) -------- (None) > --- PROPULSION (2) --- Subdweller Monowheel > --- UTILITY (2) ------ (None) > --- WEAPON (2) ------- Subdweller Machine Gun Subdweller Machine Gun > --- INVENTORY (5) ---- Subdweller Beam Cannon Subdweller Beam Cannon Barrage Gun Peak State ------------ > --- POWER ------------ (None) > --- PROPULSION ------- Compact Wheel Subdweller Monowheel > --- UTILITY ---------- Scrap Shield > --- WEAPON ----------- Powered Cannon > --- INVENTORY -------- Subdweller Beam Cannon Subdweller Beam Cannon Subdweller Machine Gun Subdweller Machine Gun Barrage Gun [Rating: 22] Favorites ----------- Power Subdweller Power Source Engine Subdweller Power Source Propulsion Subdweller Monowheel Treads Light Treads Wheel Subdweller Monowheel Utility Scrap Shield Device Seismic Detector Protection Scrap Shield Weapon Subdweller Machine Gun Energy Gun Small Laser Energy Cannon Subdweller Beam Cannon Ballistic Gun Subdweller Machine Gun Build | -11 -10 -10 ------- Run | Yrd Mat Sub Slots Evolved . | . . . Power . | . . . Propulsion . | . . . Utility . | . . . Weapon . | . . . Parts Attached 28 | 6 . 22 Power 4 | 1 . 3 Engine 4 | 1 . 3 Core . | . . . Reactor . | . . . Propulsion 8 | 2 . 6 Treads 2 | 1 . 1 Leg . | . . . Wheel 6 | 1 . 5 Hover . | . . . Flight . | . . . Utility 6 | 1 . 5 Device 2 | 1 . 1 Storage . | . . . Processor . | . . . Hackware . | . . . Protection 4 | . . 4 Artifact . | . . . Weapon 10 | 2 . 8 Energy Gun 4 | 2 . 2 Energy Cannon 2 | . . 2 Ballistic Gun 4 | . . 4 Ballistic Cannon . | . . . Launcher . | . . . Special Weapon . | . . . Impact Weapon . | . . . Slashing Weapon . | . . . Piercing Weapon . | . . . Special Melee Weapon . | . . . Unidentified Prototypes 1 | . . 1 Parts Lost 6 | . . 6 Power 2 | . . 2 Propulsion 3 | . . 3 Utility 1 | . . 1 Weapon . | . . . Highest Loss Streak 3 | . . 3 To Critical Strikes . | . . . Average Backups 3 | 2 3 4 Power . | . 1 . Propulsion . | 1 2 . Utility . | . . . Weapon 2 | . . 2 Tool/Special . | . . . Unused Backups 8 | 1 . 7 Power . | . . . Propulsion 1 | 1 . . Utility 1 | . . 1 Weapon 6 | . . 6 Tool/Special . | . . . Average Slot Usage (%) 79 | . 85 79 Engine 8 | . 14 8 Treads 2 | . 14 2 Wheel 23 | . 14 24 Device 4 | . 14 3 Protection 11 | . . 12 Energy Gun 7 | . 28 6 Energy Cannon 1 | . . 1 Ballistic Gun 19 | . . 20 Peak Build Rating 22 | 6 6 22 Average Rating 11 | 4 6 11 On Entrance 4 | . 6 6 Avg Prop Armor Cover (%) 14 | 16 15 13 Naked Turns . | . . . Heaviest Build 31 | 7 7 31 Greatest Support 40 | 20 16 40 Greatest Overweight (x) 5 | . . 5 Average Overweight (x) . | . . . Largest Inventory Capacity 5 | 5 5 5 Average Capacity 5 | 5 5 5 Most Carried 5 | 4 3 5 Average Carried 3 | 2 3 4 Final Capacity 5 | 5 5 5 Final Carried 3 | 3 3 3 Class Distribution -------------------- 66% | Subdweller-Mutant 25% | Mutant 7% | Scavenger-Mutant Dominant Class ---------------- Mutant | -10/Materials Subdweller-Mutant | -10/Subcaves Resources | -11 -10 -10 ----------- Run | Yrd Mat Sub Matter Collected 764 | 252 8 504 Remotely . | . . . Salvage Created 866 | 122 81 663 Parts 47 | 8 4 35 Haulers Intercepted 1 | . 1 . Recyclers Shooed 1 | 1 . . Parts Field Recycled . | . . . Retrieved Matter . | . . . Parts Self-Destructed 4 | . . 4 Prevented . | . . . Parts Restored . | . . . Kills | -11 -10 -10 ------- Run | Yrd Mat Sub Combat Hostiles Destroyed 16 | . . 16 Guns 14 | . . 14 Cannons 2 | . . 2 Classes Destroyed 7 | 3 2 2 Worker 1 | 1 . . Tunneler 2 | 2 . . Hauler 1 | . 1 . Recycler 1 | 1 . . Watcher 1 | . 1 . Sentry 1 | . . 1 Subdweller 15 | . . 15 Best Kill Streak 4 | 4 1 2 Combat Bots Only 2 | . . 2 Max Kills in Single Turn 1 | 1 1 1 Gunslinging . | . . . Exploded . | . . . Melee . | . . . Uniques/NPCs Destroyed . | . . . Combat | -11 -10 -10 -------- Run | Yrd Mat Sub Hostile Shots Fired 97 | . . 97 Missed 28 | . . 28 Hits 69 | . . 69 Projectile 69 | . . 69 Critical Strikes 4 | . . 4 Damage Taken 1587 | . . 1587 Core 267 | . . 267 Absorbed by Shields . | . . . Core Remaining (%) 100 | 100 . . Volleys Fired 131 | 10 11 110 Largest 2 | 2 2 2 Hottest 140 | 90 90 140 Shots Fired 248 | 20 20 208 Gun 237 | 20 20 197 Cannon 11 | . . 11 Launcher . | . . . Special . | . . . Kinetic 150 | . . 150 Thermal 98 | 20 20 58 Explosive . | . . . Electromagnetic . | . . . Robot Hit Streak 19 | 4 5 19 Robot Miss Streak 2 | 1 2 2 Penetration Max . | . . . Secondary Targets . | . . . Shots Hit Robots 116 | 12 13 91 Core Hits 40 | 5 4 31 Critical Kills . | . . . Critical Parts Destroyed . | . . . Critical Strikes 2 | . 1 1 Burn 1 | . 1 . Destroy 1 | . . 1 Melee Attacks . | . . . Impact . | . . . Slashing . | . . . Piercing . | . . . Sneak Attacks . | . . . Combat Hostiles . | . . . Follow-up Attacks . | . . . Damage Inflicted 1952 | 142 152 1658 Guns 1764 | 142 152 1470 Cannons 188 | . . 188 Explosions . | . . . Melee . | . . . Ramming . | . . . Kinetic 857 | . . 857 Thermal 1095 | 142 152 801 Explosive . | . . . Electromagnetic . | . . . Impact . | . . . Slashing . | . . . Piercing . | . . . Highest Corruption . | . . . Average Corruption . | . . . Corruption Purged . | . . . Corruption Blocked . | . . . Overload Shots . | . . . Overflow Damage . | . . . Projectiles . | . . . Explosions . | . . . Melee . | . . . Knockbacks . | . . . Impact . | . . . Kinetic . | . . . Secondary . | . . . Self-Inflicted Damage . | . . . Shots . | . . . Rammed . | . . . Targets Rammed . | . . . Kicked . | . . . Crushed . | . . . Highest Temperature 431 | 180 230 431 Average Temperature 107 | 80 110 118 Received Heat Transfer 1448 | . . 1448 Effects 1 | . 1 . Energy Bleed 1 | . 1 . Siege Activations . | . . . Martial Activations . | . . . Shielding Activations . | . . . Robots Disrupted . | . . . Combat Hostiles . | . . . Robots Corrupted . | . . . Combat Hostiles . | . . . Parts Fried . | . . . Impact Corruptions . | . . . Robots Melted . | . . . Combat Hostiles . | . . . Parts Melted 3 | 1 1 1 Heat Transferred 2233 | 384 483 1366 Parts Sabotaged . | . . . Parts Stolen . | . . . Parts Stripped . | . . . Power Chain Reactions . | . . . Alert | -11 -10 -10 ------- Run | Yrd Mat Sub Maximum Alert Level . | . . . Low Security (%) 100 | 100 100 . Level 1 . | . . . Level 2 . | . . . Level 3 . | . . . Level 4 . | . . . Level 5 . | . . . High Security . | . . . Max Security . | . . . Peak Influence 14 | 5 14 . Initial 3 | . 3 . Average 2 | 1 3 . Influence Increases 98 | 20 28 50 Destroy 0b10 Robot/C 20 | . . 20 Destroy 0b10 Robot/NC 30 | 20 10 . Destroy Leader 4 | . 4 . Successful Hack 14 | . 14 . Lose Combat Pursuer 30 | . . 30 Influence Decreases 98 | 15 33 50 Entered New Map 2 | . 2 . Time Decay 96 | 15 31 50 Squads Dispatched . | . . . Investigation . | . . . Extermination . | . . . Reinforcement . | . . . Assault . | . . . Garrison . | . . . Intercept . | . . . Searches Triggered . | . . . Construction Impeded . | . . . Haulers Reinforced . | . . . Active Scanning Responses . | . . . Cargo Convoy Interrupts . | . . . Stealth | -11 -10 -10 --------- Run | Yrd Mat Sub Distress Signals . | . . . Communications Jammed . | . . . Distress Signals . | . . . Times Spotted 22 | . 2 20 Peak Tracking Total 3 | . 2 3 Tactical Retreats 2 | . . 2 Traps | -11 -10 -10 ------- Run | Yrd Mat Sub Traps Triggered . | . . . Indirectly . | . . . Trap Hack Attempts . | . . . Triggered . | . . . Disarmed . | . . . Reprogrammed . | . . . Reused . | . . . Traps Extracted . | . . . Installed . | . . . Triggered . | . . . Machines | -11 -10 -10 ---------- Run | Yrd Mat Sub Machines Disabled . | . . . Max in Single Turn . | . . . Machines Repaired . | . . . Machines Dismantled . | . . . Machines Sabotaged . | . . . Overloaded Fab Kills . | . . . Hacking | -11 -10 -10 --------- Run | Yrd Mat Sub Machines Accessed 2 | . 1 1 Terminals 1 | . 1 . Fabricators . | . . . Repair Stations . | . . . Recycling Units . | . . . Scanalyzers . | . . . Garrison Access . | . . . Total Hacks 6 | . 2 4 Successful 5 | . 1 4 Failed 1 | . 1 . Catastrophic . | . . . Database Lockouts . | . . . Manual 2 | . 2 . Terminals 2 | . 2 . Fabricators . | . . . Repair Stations . | . . . Recycling Units . | . . . Scanalyzers . | . . . Garrison Access . | . . . Terminal Hacks 4 | . . 4 Record 4 | . . 4 Fabricator Hacks . | . . . Repair Station Hacks . | . . . Recycling Unit Hacks . | . . . Scanalyzer . | . . . Garrison Access Hacks . | . . . Unauthorized Hacks 1 | . 1 . Terminals 1 | . 1 . Botnet 1 | . 1 . Fabricators . | . . . Repair Stations . | . . . Recycling Units . | . . . Scanalyzers . | . . . Garrison Access . | . . . Data Cores Recovered . | . . . Used . | . . . Hacking Detections . | . . . Full Trace Events . | . . . Feedback Events . | . . . Feedback Blocked . | . . . Robot Schematics Acquired . | . . . Robots Built . | . . . Authchips . | . . . Time . | . . . Total Robot Build Rating . | . . . Part Schematics Acquired . | . . . Parts Built . | . . . Authchips . | . . . Time . | . . . Total Part Build Rating . | . . . Part Studies Acquired . | . . . Parts Repaired . | . . . Time . | . . . Parts Recycled . | . . . Recycled Matter . | . . . Retrieved Matter . | . . . Retrieved Components . | . . . Parts Scanalyzed . | . . . Part Schematics Acquired . | . . . Parts Damaged . | . . . Bothacking | -11 -10 -10 ------------ Run | Yrd Mat Sub Used RIF Installer . | . . . Robots Hacked . | . . . Non-combat . | . . . Combat . | . . . Robot Hacks Applied . | . . . Relay Couplers Released . | . . . Fabnet Peak Effective % . | . . . Robots Rewired . | . . . Allies Hacked . | . . . Hacks Repelled . | . . . Allies | -11 -10 -10 -------- Run | Yrd Mat Sub Total Allies . | . . . Largest Group . | . . . Highest-Rated Group . | . . . Highest-Rated Ally . | . . . Total Orders . | . . . Ally Attacks . | . . . Total Damage . | . . . Kills . | . . . Allies Corrupted . | . . . Allies Melted . | . . . Intel | -11 -10 -10 ------- Run | Yrd Mat Sub Active Infowar (turns) 594 | 11 130 453 Seismic 594 | 11 130 453 Robot Analysis Total . | . . . Derelict Logs Recovered 3 | . . 3 Drone Launches . | . . . Drone Recoveries . | . . . Exploration | -11 -10 -10 ------------- Run | Yrd Mat Sub Turns Passed 2785 | 106 130 2549 Spaces Moved 2019 | 65 70 1884 Core 63 | 9 . 54 Treads 15 | 4 . 11 Legs . | . . . Wheels 1941 | 52 70 1819 Hover . | . . . Flight . | . . . Fastest Speed 50 | 50 100 100 Average Speed 107 | 96 100 108 Slowest Speed 300 | 160 100 300 Overloaded Moves . | . . . Propulsion Burnouts . | . . . Robots Hopped . | . . . Potential Cave-ins . | . . . Cave-ins Triggered . | . . . Exploration Rate (%) 34 | 4 15 84 Regions Visited 2 Branch Regions 1 Pre-discovered Areas 1 | . . 1 Known Exits Taken . | . . . Unknown Exits Taken 2 | 1 1 . Scrap Searched 9 | . . 9 Spaces Dug 10 | . . 10 Terrain Destroyed 17 | . . 17 Melee . | . . . Projectile 17 | . . 17 AOE . | . . . Terrain Rammed . | . . . Walls Destroyed . | . . . Machines Disabled . | . . . Actions | -11 -10 -10 --------- Run | Yrd Mat Sub Total 2380 | 85 110 2185 Wait 143 | . 30 113 Move 2017 | 64 69 1884 Hop . | . . . Pick Up 20 | 4 . 16 Fast Attach 17 | 6 . 11 Attach 7 | . . 7 Detach 6 | . . 6 Swap 10 | . . 10 Drop 24 | 1 . 23 Fire 131 | 10 11 110 Melee . | . . . Ram . | . . . Kick . | . . . Crush . | . . . Escape Stasis . | . . . Rewire . | . . . Trap . | . . . Miscellaneous 5 | . . 5 Route ------- -11/Scrapyard -10/Materials (discovered 2 exits: [*Min] / *Sub) -10/Subcaves (discovered 5 exits: [*Mat x2] / [*Rec] / [*Scr x2]) History --------- Turn | Location | Event 2 | -11/Scrapyard | Discovered new exit (range 16) 107 | -11/Scrapyard | Entered Materials 108 | -10/Materials | Met a group of wandering Federalists 109 | -10/Materials | Discovered new exit (range 9) 186 | -10/Materials | Discovered new exit (range 9) 237 | -10/Materials | Entered Subcaves 238 | -10/Subcaves | Continued accompanying wandering Federalists (5) 238 | -10/Subcaves | Approached by a straggling Scientist 307 | -10/Subcaves | Build established: Mutant 370 | -10/Subcaves | Shifting Twisted Machinery released Mak. Kinetic Plating 374 | -10/Subcaves | Shifting Twisted Machinery released Riot Gun 557 | -10/Subcaves | Core integrity fell below 50% 585 | -10/Subcaves | Lost 3 parts (1p2n) 774 | -10/Subcaves | Visited Clippyterm 777 | -10/Subcaves | Learned Research security intel 884 | -10/Subcaves | Disturbed a concealed Subdweller 892 | -10/Subcaves | Core integrity fell below 20% 984 | -10/Subcaves | Learned location of Storage (-8) 994 | -10/Subcaves | A swath of the cavern ceiling suddenly collapsed 1223 | -10/Subcaves | Build established: Subdweller-Mutant 1230 | -10/Subcaves | Learned Materials emergency access door positions 1331 | -10/Subcaves | Learned Materials terminal intel 1748 | -10/Subcaves | Discovered new exit (range 6) 2243 | -10/Subcaves | Discovered new exit (range 13) 2351 | -10/Subcaves | Ambushed by Subdweller buried in earth 2436 | -10/Subcaves | Ambushed by Subdweller buried in earth 2587 | -10/Subcaves | Discovered new exit (range 10) 2627 | -10/Subcaves | Visited 4L-MR0's lab 2722 | -10/Subcaves | A Subdweller sparked back to life 2722 | -10/Subcaves | A Subdweller sparked back to life 2774 | -10/Subcaves | Found Prototype Energy Cannon 2774 | -10/Subcaves | Identified Powered Cannon 2776 | -10/Subcaves | Attached Powered Cannon, gained temporary slot: Power 2786 | -10/Subcaves | Destroyed by 8H-OJ0(R) with Subdweller Laser Last Messages --------------- 02539_ Dropped Broken Sub. Power Source. 02587_ EXIT=FOUND 02627_ 4L-MR0: "What, already? Ugh, fine! Just take it and go! I only just finished this one... Can't you folks let me experiment with them a little longer before you take them away? 02722_ 8H-OJ0(R) creaks and sparks as it begins to move. 02722_ 3X-LBK(R) creaks and sparks as it begins to move. 02731_ 3X-LBK(R) destroyed. 02734_ Acquired 50 matter. 02763_ 5E-PLL(R) affixes Scrap Shield Fragment to Scrap Shield. 02767_ 5E-PLL(R) suffers critical hit (Destroy). 02767_ 5E-PLL(R) destroyed. 02774_ Acquired Prototype Energy Cannon. 02774_ Identified Powered Cannon. 02776_ Core temporarily expanded with Power slot. 02776_ Acquired 44 matter. 02780_ Scrap Shield destroyed. 02782_ Dropped Com. Wheel. 02782_ Discarded Powered Cannon. 02783_ Temporary Power slot lost. Map ----- +----------------------------------------------------+ | ?????????????????????????????????????#?# #??? | | ?????????????????????????????????????# ## ##?? | | ?????????????????????????????????????? # #?? | | ??????????????????????????????????????# # ##?? | | ??????????????????????????????????????# #??? | | ??????????????????????????????????????## ## #??? | | ?????????????????????????????????????### ## #??? | | ????????????????????????###??????????# ##?? | | ????????????????????????# #??????????### #?? | | ????????????????????????# #???????????# ##?? | | ????????????????????????# #??????####### ### #?? | | ???????????????????????## #????### # # # #?? | | ???????????????????????# #????# ##?? | | ???????????????????????# =##???## #?? | | ??????????????????????##! #???## ### ## # ##?? | | ?????????????????????## ##?### ############??? | | ?????????????????????# ##??# #????????????? | | ?????????????????????# [ ##?# # ##????????????? | | ?????????????????????#### ## ### #????????????? | | ??????????????????????# #=!#??# ##????????????? | | ??????????????????????###% ##??# ###???????????? | | ????????????????????????# ###### #####???????? | | ?????????????????????##### # ## ##??????? | | ?????????????????????# ## ##?????? | | ?????????????????????# ##R # #?????? | | ????????????????????## &<@# ## ## # ##????? | | ????????????????????# <=&<##### ## ## #????? | | ??????????????####### !& #???# ## "###" #????? | | ?????????????## # # < [ ###### "###" ##???? | | ##???????????# < # # ""##" #???? | | ##?????????## """"""#"" #???? | | #????????##^ # # "#"""""" ##???? | | ##??####?# ###### ########""" " #???? | | #### ### ##?### ###?????#" " " ##??? | | # ### #???## ######??# " #??? | | ## ## ##???# ##"" ### ### #??? | | ## #### "## ##?# #??? | | # # # # "#### #??? | | ## ^ ^ ##### " " ##??? | | #### ## #???## " "" #???? | | ##?##### ## # ##????# "" #???? | | #?????# ### #####???### ### #???? | | #?????# ## ^## #????#### ##?## ###???? | | ##?????##### ## #?### # ##??####?????? | | #??????????# ## #?# # ! #???????????? | | ???????????## #### ##?## ## ! ##??????????? | | ????????????#####??###???## ##### "###????????? | | ??????????????????????????# #### "" ###??????? | | ??????????????????????????# ### "" "###????? | | ??????????????????????????# ### "## ##???? | +----------------------------------------------------+ Best States ------------- Heat Dissipation 25 Coolant Potential 50 Energy Generation 15 Energy Capacity 250 Matter Stores 300 Matter Capacity 300 Sight Range 16 Terrain Scan Density 10 Armor Coverage 800 Resistance: KI 10 Evasion (%) 40 Recoil Reduction 2 Item Schematics ----------------- None Robot Schematics ------------------ None Fabricated ------------ Nothing Repaired ---------- Nothing Studied --------- None Alien Tech Used ----------------- None Achievements -------------- None Challenges ------------ None Game ------ Seed LobotomyBarrageArmor Manual? 1 Play Time 00:24:58 Cumulative 553.7 hours Start 2026.08.01 @ 21:54:46 End 2026.08.01 @ 22:20:34 Sessions 1 Manual Loads 0 Difficulty Rogue Special Mode None Game No. 234 Rogue 234 Adventurer 0 Explorer 0 Win Type - Total 33 Types 15/3/4/2/1/2/2/2/1/1 Lore% 90 Gallery% 81 Achievement% 77 Wizard Run 0 Options --------- Layout 0 ASCII 0 Keyboard 1 Movement Arrows Keybinds 0 Fullscreen 2 Font 18/Terminus Map View 76x50 Zoom Use 0% Tactical HUD 1 Map Filters BRIGHTNESS(90)|SATURATION(90) Filters NONE Steam 1 RUN: cf57d60a-45c8-4a88-887f-0c9ce1cced6a